[Event "Chile Championship Women 2022"]
[Site "Las Condes"]
[Date "2022.02.26"]
[Round "10.3"]
[White "Sanchez Tobar, Francisca Valentina"]
[Black "Morales Flores, Monserrat"]
[Result "1/2-1/2"]
[ECO "B40"]
[WhiteElo "1837"]
[BlackElo "1943"]
[Annotator "ChessBase"]
[PlyCount "32"]
[EventDate "2022.02.18"]
[EventType "tourn"]
[EventCountry "CHI"]
[SourceTitle "playchess.com"]
[Source "ChessBase"]
[SourceQuality "1"]
[TimeControl "5400+30"]

1. e4 {[%emt 0:03:06]} c5 {[%emt 0:00:09]} 2. Nf3 {[%emt 0:00:53]} e6 {[%emt 0:00:20]} 3. g3 {[%emt 0:00:37]} d5 {[%emt 0:01:32]} 4. exd5 {[%emt 0:00:39]} exd5 {[%emt 0:00:06]} 5. d4 {[%emt 0:00:18]} cxd4 {[%emt 0:01:09]} 6. Nxd4 {[%emt 0:00:41]} Nc6 {[%emt 0:02:05]} 7. Bg2 {[%emt 0:01:56]} Bc5 {[%emt 0:02:12]} 8. Nb3 {[%emt 0:04:33]} Qe7+ {[%emt 0:02:47]} 9. Qe2 {[%emt 0:00:22]} Bb6 {[%emt 0:03:40]} 10. c3 {[%emt 0:07:15]} Qxe2+ {[%emt 0:05:25]} 11. Kxe2 {[%emt 0:00:05]} Nf6 {[%emt 0:02:30]} 12. Be3 {[%emt 0:16:06]} Bg4+ {[%emt 0:11:06]} 13. f3 {[%emt 0:02:55]} Bxe3 {[%emt 0:12:37]} 14. Kxe3 {[%emt 0:00:58]} O-O-O {[%emt 0:51:52]} 15. Ke2 Rhe8+ {[%emt 0:00:30]} 16. Kf2 {[%emt 0:58:06]} a6 {[%emt 0:00:30]} 1/2-1/2

[Event "Chile Championship Women 2022"]
[Site "Las Condes"]
[Date "2022.02.26"]
[Round "10.4"]
[White "Fuentes Inzunza, Lesly"]
[Black "Reyes Jara, Paula"]
[Result "1-0"]
[ECO "A49"]
[WhiteElo "1816"]
[BlackElo "1880"]
[Annotator "NA RC"]
[PlyCount "93"]
[EventDate "2022.02.18"]
[EventType "tourn"]
[EventCountry "CHI"]
[SourceTitle "playchess.com"]
[Source "ChessBase"]
[SourceQuality "1"]
[TimeControl "5400+30"]

{[%evp 12,93,20,16,32767,32767,22,0,6,-19,44,56,78,66,81,82,87,80,87,85,32767,32767,97,100,118,63,115,82,84,68,85,37,101,45,67,55,68,32767,32767,32767,32767,32767,32767,32767,32767,32767,32767,13,40,58,63,-70,17,0,19,20,28,22,26,2,248,258,225,223,257,177,185,169,306,287,411,427,554,636,897,1141,1081,1420,29988,1839,6287,29980,29996,29997]} 1. d4 {[%emt 0:00:30]} Nf6 {[%emt 0:27:04]} 2. Nf3 {[%emt 0:00:00]} g6 {[%emt 0:00:09]} 3. g3 {[%emt 0:02:42]} Bg7 {[%emt 0:00:06]} 4. Bg2 {[%emt 0:00:08]} O-O {[%emt 0:00:26]} 5. O-O {[%emt 0:00:28]} d6 {[%emt 0:00:42]} 6. Re1 {[%emt 0:02:02]} Nbd7 {[%emt 0:07:48]} 7. e4 {[%emt 0:02:30]} e5 {[%emt 0:01:14]} 8. c3 {[%emt 0:01:19]} b6 {[%emt 0:07:07]} 9. Nbd2 {[%emt 0:07:26]} Bb7 {[%emt 0:01:57]} 10. Qc2 {[%emt 0:02:06]} c5 {[%emt 0:01:52]} (10... Re8 $11) 11. d5 $1 {[%emt 0:02:09]} Qc7 {[%emt 0:01:17]} 12. a4 {[%emt 0:03:00]} Ne8 {[%emt 0:08:24]} 13. Nc4 {[%emt 0:19:39]} Ndf6 {[%emt 0:07:19]} 14. Nh4 {[%emt 0:07:42]} Qd7 {[%emt 0:05:43]} 15. Bg5 {[%emt 0:09:20]} Ba6 {[%emt 0:00:35]} 16. Bf1 {[%emt 0:01:52]} Bc8 {[%emt 0:06:23]} 17. f3 {[%emt 0:19:59]} h6 {[%emt 0:02:57]} 18. Bc1 {[%emt 0:00:59]} ({White should try} 18. Be3 $16) 18... Nh5 {[%emt 0:01:08]} (18... Nh7 $14) 19. Ne3 {[%emt 0:00:52]} Qe7 {[%emt 0:00:44]} 20. Ng4 {[%emt 0:01:46]} Kh7 {[%emt 0:00:08]} 21. Bd3 {[%emt 0:06:46]} ({Better is} 21. Nf2 $16) 21... Nef6 {[%emt 0:00:44]} (21... Nf4 $14) 22. Nxf6+ {[%emt 0:00:36]} Bxf6 {[%emt 0:00:07]} 23. Ng2 {[%emt 0:00:11]} Bg5 {[%emt 0:01:22]} 24. Bxg5 {[%emt 0:00:50]} Qxg5 {[%emt 0:00:07]} 25. Qc1 {[%emt 0:00:26]} Qf6 {[%emt 0:01:26]} 26. Qe3 {[%emt 0:00:45]} g5 {[%emt 0:01:25]} 27. a5 {[%emt 0:00:12]} Bd7 {[%emt 0:00:45]} 28. c4 {[%emt 0:02:47]} Rfb8 {[%emt 0:01:46]} 29. Qf2 {[%emt 0:02:10]} (29. Qe2 $14) 29... bxa5 {[%emt 0:00:21]} 30. Rxa5 {[%emt 0:00:03]} Rb3 {[%emt 0:00:11]} 31. Re3 {[%emt 0:01:29] [#]} (31. Qe2 $14) 31... Qd8 {[%emt 0:00:33]} (31... Nf4 $1 $15 32. Qd2 (32. gxf4 gxf4 33. Re1 Rxd3 $17) 32... Nh3+ 33. Kh1 Rab8) 32. Ra3 {[%emt 0:00:34]} Qb6 {[%emt 0:00:49]} 33. Rxb3 {[%emt 0:00:15]} Qxb3 {[%emt 0:00:06]} 34. Bf1 {[%emt 0:00:18]} Qb7 {[%emt 0:03:23]} 35. f4 {[%emt 0:00:27]} Bg4 $2 {[%emt 0:03:20]} (35... gxf4 $11 {and Black is okay.} 36. gxf4 exf4 37. Nxf4 Nxf4) 36. fxe5 {[%emt 0:00:15]} dxe5 {[%emt 0:00:03]} 37. Be2 {[%emt 0:00:24]} Bxe2 {[%emt 0:01:46]} 38. Qf5+ {[%emt 0:00:01]} ({But not} 38. Qxe2 $6 Ng7 39. Rf3 Rb8 $16) 38... Kg8 {[%emt 0:01:17]} 39. Rxe2 {[%emt 0:00:01]} Qa6 {[%emt 0:01:32]} (39... Ng7 {might work better.} 40. Qf3 (40. Qxe5 Qb3 $16) 40... Rf8) 40. Rf2 {[%emt 0:00:19]} ({Not} 40. Qxe5 Qxc4 41. Rf2 Qd3 $16) 40... Rf8 {[%emt 0:00:01]} 41. Ne3 {[%emt 0:00:19]} Qa1+ {[%emt 0:02:12]} 42. Kg2 {[%emt 0:00:13]} Qe1 {[%emt 0:00:02]} 43. Ng4 {[%emt 0:00:12]} Kg7 {[%emt 0:01:19]} 44. Nxe5 {[%emt 0:00:42]} Kh8 {[%emt 0:02:27] [#]} 45. Nxf7+ $18 {[%emt 0:01:04]} (45. Ng6+ $142 $1 {[%mdl 512]} Kg8 46. Nxf8 Nf4+ 47. gxf4 Qc1 48. Nd7 gxf4 49. Ne5 f3+ 50. Kxf3) 45... Kg7 {[%emt 0:00:05]} 46. Qe5+ {[%emt 0:00:27]} Kg6 {[%emt 0:00:24]} 47. Qe6+ {[%emt 0:00:19]} 1-0

[Event "Chile Championship Women 2022"]
[Site "Las Condes"]
[Date "2022.02.27"]
[Round "11.1"]
[White "Reyes Jara, Paula"]
[Black "Luna Benalcazar, Gianella"]
[Result "1-0"]
[ECO "B06"]
[WhiteElo "1880"]
[BlackElo "1736"]
[Annotator "NA"]
[PlyCount "94"]
[EventDate "2022.02.18"]
[EventType "tourn"]
[EventCountry "CHI"]
[SourceTitle "playchess.com"]
[Source "ChessBase"]
[SourceQuality "1"]
[TimeControl "5400+30"]

1. e4 {[%emt 0:02:16]} g6 {[%emt 0:10:10]} 2. Nf3 {[%emt 0:01:29]} Bg7 {[%emt 0:00:09]} 3. Bc4 {[%emt 0:00:57]} c6 {[%emt 0:01:07]} 4. e5 {[%emt 0:02:29]} d5 {[%emt 0:00:57]} 5. exd6 {[%emt 0:00:08]} Qxd6 {[%emt 0:01:15]} 6. O-O {[%emt 0:00:52]} Nf6 {[%emt 0:03:17]} 7. d4 {[%emt 0:04:51]} O-O {[%emt 0:00:26]} 8. Re1 {[%emt 0:01:50]} Bg4 {[%emt 0:03:10]} 9. c3 {[%emt 0:00:34]} Nbd7 {[%emt 0:04:21]} 10. h3 {[%emt 0:02:14]} Bxf3 {[%emt 0:02:22]} 11. Qxf3 {[%emt 1:18:20]} e5 {[%emt 0:00:27]} 12. Be3 {[%emt 0:00:00]} e4 {[%emt 0:09:10]} (12... Nd5 {feels stronger.}) 13. Qf4 {[%emt 0:00:00]} Qe7 {[%emt 0:05:56]} 14. Qh4 {[%emt 0:00:00]} Rfe8 {[%emt 0:54:43] [#]} 15. Nd2 {[%emt 0:00:00]} (15. Bg5 $1 $16) 15... Nd5 {[%emt 0:00:00]} (15... Nb6 $1 $14) 16. Bg5 {[%emt 0:00:00]} Qf8 {[%emt 0:00:00]} (16... f6 $142) 17. Nxe4 {[%emt 0:00:00]} ({Much less strong is} 17. Rxe4 h6 $14) 17... f5 {[%emt 0:00:00] [#]} 18. Ng3 {[%emt 0:00:00]} (18. f3 $1 $18) 18... N7b6 {[%emt 0:00:00]} 19. Bb3 {[%emt 0:00:00]} Kh8 {[%emt 0:00:00]} 20. Nf1 {[%emt 0:00:00]} c5 {[%emt 0:00:00]} (20... Nf6 $142 21. Nd2 a5) 21. dxc5 {[%emt 0:00:00]} Qxc5 {[%emt 0:00:00]} 22. Rad1 {[%emt 0:00:00]} a5 {[%emt 0:00:00]} 23. Ne3 {[%emt 0:00:00]} Re4 {[%emt 0:00:00]} 24. g4 {[%emt 0:00:00]} Nxe3 {[%emt 0:00:00]} 25. Bxe3 {[%emt 0:00:00]} Qb5 $2 {[%emt 0:00:00]} (25... Qc7 26. Bc2 Re5 27. gxf5 gxf5) 26. Rd8+ {[%emt 0:00:00]} Rxd8 {[%emt 0:00:00]} 27. Qxd8+ {[%emt 0:00:00]} Qe8 {[%emt 0:00:00]} 28. Qxb6 {[%emt 0:00:00]} (28. Rd1 $142) 28... f4 {[%emt 0:00:00] [#]} 29. Kg2 $1 {[%emt 0:00:00]} a4 {[%emt 0:00:35]} 30. Bc2 {[%emt 0:00:00]} Re6 {[%emt 0:00:42]} 31. Qxb7 $2 {[%emt 0:00:00]} (31. Bd2 f3+ 32. Kg3 Qb8+ 33. Bf4 Qxf4+ 34. Kxf4 Rxb6 35. Re8+ Bf8 36. Rxf8+ Kg7 37. Rb8) 31... Re7 {[%emt 0:03:41]} 32. Qb4 {[%emt 0:00:00]} fxe3 {[%emt 0:01:29]} 33. Rxe3 {[%emt 0:00:00]} Qa8+ {[%emt 0:01:15]} 34. Be4 {[%emt 0:00:00]} Qe8 {[%emt 0:00:50]} 35. Bxg6 {[%emt 0:00:00]} Qa8+ {[%emt 0:00:05]} 36. Be4 {[%emt 0:00:00]} Qa7 {[%emt 0:00:13]} 37. Qc4 {[%emt 0:00:00]} Rc7 {[%emt 0:01:14]} 38. Qd5 {[%emt 0:00:00]} Rf7 {[%emt 0:00:38]} 39. Bf5 {[%emt 0:00:00]} Rf8 {[%emt 0:00:13]} 40. Qc6 {[%emt 0:00:00]} a3 {[%emt 0:00:35]} 41. b3 {[%emt 0:00:00]} Qa5 {[%emt 0:00:52]} 42. Rf3 {[%emt 0:00:00]} Qe5 {[%emt 0:00:32]} 43. Qa6 {[%emt 0:16:00]} Rd8 {[%emt 0:00:25]} 44. Qxa3 {[%emt 0:00:00]} h5 {[%emt 0:00:33]} 45. Qa7 {[%emt 0:00:00]} hxg4 {[%emt 0:00:11]} 46. hxg4 {[%emt 0:00:00]} Qd5 {[%emt 0:00:53]} 47. Qe3 $18 {[%emt 0:00:00]} (47. Qe7 $142 Qxf3+ 48. Kxf3 Rb8 49. Kg2 Ra8 50. Qf7 Rf8 51. Qh5+ Kg8 52. Bh7+ Kh8 53. Bg6+ Bh6 54. Qxh6+ Kg8 55. Qh7#) 47... Rb8 {[%emt 0:00:41]} 1-0

[Event "Chile Championship Women 2022"]
[Site "Las Condes"]
[Date "2022.02.27"]
[Round "11.2"]
[White "Morales Flores, Monserrat"]
[Black "Fuentes Inzunza, Lesly"]
[Result "1-0"]
[ECO "B15"]
[WhiteElo "1943"]
[BlackElo "1816"]
[Annotator "ChessBase"]
[PlyCount "57"]
[EventDate "2022.02.18"]
[EventType "tourn"]
[EventCountry "CHI"]
[SourceTitle "playchess.com"]
[Source "ChessBase"]
[SourceQuality "1"]
[TimeControl "5400+30"]

1. e4 {[%emt 0:00:47]} c6 {[%emt 0:00:18]} 2. d4 {[%emt 0:00:06]} d5 {[%emt 0:00:10]} 3. Nc3 {[%emt 0:00:13]} dxe4 {[%emt 0:00:11]} 4. Nxe4 {[%emt 0:00:13]} Nf6 {[%emt 0:00:10]} 5. Nxf6+ {[%emt 0:00:33]} exf6 {[%emt 0:00:13]} 6. c3 {[%emt 0:00:40]} Bf5 {[%emt 0:00:34]} 7. Nf3 {[%emt 0:05:40]} Bd6 {[%emt 0:01:07]} 8. Be2 {[%emt 0:05:14]} h6 {[%emt 0:01:11]} 9. Be3 {[%emt 0:02:01]} Nd7 {[%emt 0:03:14]} 10. Nh4 {[%emt 0:08:04]} Be4 {[%emt 0:07:11]} 11. Bd3 {[%emt 0:05:43]} Bxd3 {[%emt 0:08:21]} 12. Qxd3 {[%emt 0:00:05]} Nf8 {[%emt 0:01:41]} 13. Nf5 {[%emt 0:06:45]} Ne6 {[%emt 0:01:37]} 14. d5 {[%emt 0:01:14]} Be5 {[%emt 0:08:56]} 15. O-O-O {[%emt 0:08:57]} Qxd5 {[%emt 0:07:31]} 16. Qxd5 {[%emt 0:00:39]} cxd5 {[%emt 0:00:08]} 17. Rxd5 {[%emt 0:00:12]} Nf4 {[%emt 0:10:36]} 18. Bxf4 {[%emt 0:02:33]} Bxf4+ {[%emt 0:00:09]} 19. Kc2 {[%emt 0:00:09]} g6 {[%emt 0:10:12]} 20. Nd4 {[%emt 0:15:07]} O-O {[%emt 0:20:52]} 21. Rd7 {[%emt 0:01:02]} Rab8 {[%emt 0:04:04]} 22. g3 {[%emt 0:03:39]} Be5 {[%emt 0:00:02]} 23. Nb3 {[%emt 0:00:26]} Rfc8 {[%emt 0:03:29]} 24. f4 {[%emt 0:01:09]} Bc7 {[%emt 0:01:09]} 25. Re1 {[%emt 0:00:56]} Bd8 {[%emt 0:00:37]} 26. Re8+ {[%emt 0:00:44]} Kg7 {[%emt 0:00:11]} 27. Nd4 {[%emt 0:00:13]} f5 {[%emt 0:06:43]} 28. Ne6+ {[%emt 0:00:24]} Kf6 {[%emt 0:00:08]} 29. Nxd8 {[%emt 0:00:06]} 1-0

[Event "Chile Championship Women 2022"]
[Site "Las Condes"]
[Date "2022.02.27"]
[Round "11.3"]
[White "Lemus Pena, Macarena"]
[Black "Sanchez Tobar, Francisca Valentina"]
[Result "1-0"]
[ECO "A15"]
[WhiteElo "1703"]
[BlackElo "1837"]
[Annotator "NA"]
[PlyCount "111"]
[EventDate "2022.02.18"]
[EventType "tourn"]
[EventCountry "CHI"]
[SourceTitle "playchess.com"]
[Source "ChessBase"]
[SourceQuality "1"]
[TimeControl "5400+30"]

1. Nf3 {[%emt 0:07:39]} Nf6 {[%emt 0:00:16]} 2. c4 {[%emt 0:01:00]} g6 {[%emt 0:00:31]} 3. b4 {[%emt 0:00:26]} Bg7 {[%emt 0:00:23]} 4. Bb2 {[%emt 0:00:21]} c6 {[%emt 0:00:57]} 5. Nc3 {[%emt 0:03:09]} O-O {[%emt 0:00:54]} 6. g3 {[%emt 0:03:24]} d5 {[%emt 0:04:08]} 7. d3 {[%emt 0:01:28]} Qd6 {[%emt 0:02:13]} 8. a3 {[%emt 0:03:10]} Nbd7 {[%emt 0:04:14]} 9. cxd5 {[%emt 0:02:31]} Nxd5 {[%emt 0:01:29]} 10. Ne4 {[%emt 0:04:56]} Qc7 {[%emt 0:00:55]} 11. Bxg7 {[%emt 0:00:20]} Kxg7 {[%emt 0:00:05]} 12. Rc1 {[%emt 0:00:21]} N7f6 {[%emt 0:02:37]} 13. Bg2 {[%emt 0:06:31]} Rd8 {[%emt 0:13:49]} 14. Nxf6 {[%emt 0:04:35]} Nxf6 {[%emt 0:00:20]} 15. Qb3 {[%emt 0:00:28]} a5 {[%emt 0:06:33]} 16. Ng5 {[%emt 0:10:09]} e6 {[%emt 0:02:47]} 17. Qc3 {[%emt 0:00:26]} axb4 {[%emt 0:01:48]} 18. axb4 {[%emt 0:00:08]} Qe7 {[%emt 0:00:55]} 19. Ne4 {[%emt 0:10:09]} e5 {[%emt 0:04:28]} 20. Nxf6 {[%emt 0:00:14]} Qxf6 {[%emt 0:00:03]} 21. O-O {[%emt 0:01:29]} Be6 {[%emt 0:12:07]} 22. f4 {[%emt 0:07:30]} exf4 {[%emt 0:00:46]} 23. Qxf6+ {[%emt 0:00:10]} Kxf6 {[%emt 0:00:05]} 24. Rxf4+ {[%emt 0:00:08]} Kg7 {[%emt 0:01:14]} 25. b5 {[%emt 0:01:18]} cxb5 {[%emt 0:04:11]} 26. Rb1 {[%emt 0:00:17]} Ra2 {[%emt 0:10:57]} 27. Bf3 {[%emt 0:11:14]} Ra5 {[%emt 0:07:05]} 28. Bxb7 {[%emt 0:20:59]} Rb8 {[%emt 0:03:10]} 29. Bf3 {[%emt 0:00:00]} Rb6 {[%emt 0:02:33]} 30. Kf2 {[%emt 0:00:00]} Ra2 {[%emt 0:00:39]} 31. Ke3 {[%emt 0:00:00]} h5 {[%emt 0:00:54]} 32. Rfb4 {[%emt 0:00:00]} Bd7 {[%emt 0:01:10]} 33. Bd5 {[%emt 0:00:00]} Rc2 {[%emt 0:03:29]} 34. Bb3 {[%emt 0:00:00]} Rc7 {[%emt 0:01:03]} 35. Kd2 {[%emt 0:00:00]} Rf6 {[%emt 0:01:00]} 36. Rf4 {[%emt 0:00:00]} Be8 {[%emt 0:01:24]} (36... Rxf4 $11 37. gxf4 Rc6) 37. Rbf1 {[%emt 0:00:00]} (37. Rxf6 $14 Kxf6 38. Ra1) 37... Rd6 {[%emt 0:02:05]} 38. Ra1 {[%emt 0:00:00]} Rf6 {[%emt 0:01:58]} 39. Ra8 {[%emt 0:00:28]} Bd7 {[%emt 0:00:28]} 40. Ra1 {[%emt 0:01:20]} g5 {[%emt 0:00:24]} 41. Rxf6 {[%emt 0:00:19]} Kxf6 {[%emt 0:00:01]} 42. Rf1+ {[%emt 0:00:14]} Ke5 {[%emt 0:02:05]} 43. Rxf7 {[%emt 0:00:09]} Kd6 {[%emt 0:00:34]} 44. Rf1 {[%emt 0:01:33]} (44. e4 $142) 44... Bg4 {[%emt 0:01:11]} 45. e4 {[%emt 0:01:20]} Ke5 {[%emt 0:01:59]} 46. Rc1 $2 {[%emt 0:00:54]} (46. Rf8 $18) 46... Rxc1 {[%emt 0:00:26]} 47. Kxc1 {[%emt 0:00:05]} Kd4 $11 {[%emt 0:00:03]} 48. Kd2 {[%emt 0:01:17]} b4 {[%emt 0:00:52]} 49. Bd1 {[%emt 0:00:26]} b3 {[%emt 0:00:59]} 50. Bxg4 {[%emt 0:00:17]} hxg4 {[%emt 0:00:08]} 51. Kc1 {[%emt 0:00:19]} Kxd3 {[%emt 0:00:34]} 52. e5 {[%emt 0:00:09]} Ke3 {[%emt 0:00:03]} 53. e6 {[%emt 0:00:09]} Kf2 {[%emt 0:00:02]} 54. e7 {[%emt 0:00:05]} Kg2 {[%emt 0:00:05]} 55. e8=Q {[%emt 0:00:06]} Kxh2 {[%emt 0:00:07]} 56. Qe3 {[%emt 0:00:28]} 1-0

[Event "Chile Championship Women 2022"]
[Site "Las Condes"]
[Date "2022.02.27"]
[Round "11.4"]
[White "Vildosola Canales, Melany Selena"]
[Black "Rozas Lazcano, Valeska"]
[Result "1/2-1/2"]
[ECO "B42"]
[WhiteElo "1645"]
[BlackElo "1456"]
[Annotator "NA"]
[PlyCount "101"]
[EventDate "2022.02.18"]
[EventType "tourn"]
[EventCountry "CHI"]
[SourceTitle "playchess.com"]
[Source "ChessBase"]
[SourceQuality "1"]
[TimeControl "5400+30"]

1. e4 {[%emt 0:00:12]} c5 {[%emt 0:01:20]} 2. Nf3 {[%emt 0:00:06]} e6 {[%emt 0:00:06]} 3. d4 {[%emt 0:00:04]} cxd4 {[%emt 0:00:04]} 4. Nxd4 {[%emt 0:00:05]} a6 {[%emt 0:00:05]} 5. Bd3 {[%emt 0:00:05]} Nc6 {[%emt 0:00:08]} 6. Nxc6 {[%emt 0:00:14]} bxc6 {[%emt 0:00:07]} 7. c4 {[%emt 0:00:15]} d6 {[%emt 0:00:12]} 8. Nc3 {[%emt 0:00:13]} Nf6 {[%emt 0:00:09]} 9. O-O {[%emt 0:01:24]} Be7 {[%emt 0:00:07]} 10. b3 {[%emt 0:03:10]} Qc7 {[%emt 0:01:03]} 11. Bb2 {[%emt 0:01:33]} e5 {[%emt 0:06:31]} 12. Rc1 {[%emt 0:06:20]} Qa7 {[%emt 0:02:41]} 13. Kh1 {[%emt 0:08:10]} g5 {[%emt 0:00:59]} 14. Be2 {[%emt 0:04:36]} Be6 {[%emt 0:13:23]} 15. Ba3 {[%emt 0:03:19]} Rd8 {[%emt 0:02:26]} 16. Qd2 {[%emt 0:04:24]} h6 {[%emt 0:03:28]} 17. Qc2 {[%emt 0:06:12]} a5 {[%emt 0:13:16]} 18. Rcd1 {[%emt 0:04:27]} Kf8 {[%emt 0:09:33]} 19. c5 {[%emt 0:20:48]} d5 {[%emt 0:11:41]} 20. exd5 {[%emt 0:02:59]} Nxd5 {[%emt 0:01:16]} 21. Nxd5 {[%emt 0:07:52]} Bxd5 {[%emt 0:02:30]} 22. Bh5 {[%emt 0:03:17]} Qd7 {[%emt 0:09:48]} 23. Qc3 {[%emt 0:04:18]} Qf5 {[%emt 0:03:55]} 24. f3 {[%emt 0:08:41]} Kg7 {[%emt 0:03:25]} 25. Bg4 {[%emt 0:00:42]} Qf6 {[%emt 0:10:10]} 26. Bb2 {[%emt 0:01:52]} Qg6 {[%emt 0:00:11]} 27. Qxe5+ {[%emt 0:05:39]} Bf6 {[%emt 0:00:04]} 28. Qxf6+ {[%emt 0:01:28]} Qxf6 {[%emt 0:00:08]} 29. Bxf6+ {[%emt 0:00:04]} Kxf6 {[%emt 0:06:14]} 30. f4 {[%emt 0:03:01]} Rhe8 {[%emt 0:00:00]} 31. fxg5+ {[%emt 0:00:00]} Kxg5 {[%emt 0:00:00]} 32. h3 {[%emt 0:00:00]} Re5 {[%emt 0:00:00]} 33. Kh2 {[%emt 0:00:09]} Rb8 {[%emt 0:00:00]} 34. Rd4 {[%emt 0:00:44]} f5 {[%emt 0:01:11]} 35. h4+ {[%emt 0:00:41]} Kg6 {[%emt 0:00:27]} 36. Bd1 {[%emt 0:00:29]} Re4 {[%emt 0:01:10]} 37. Rf4 {[%emt 0:00:48]} Rxd4 {[%emt 0:00:38]} 38. Rxd4 {[%emt 0:00:02]} Rb5 {[%emt 0:00:16]} 39. Kg3 {[%emt 0:01:06]} Rxc5 {[%emt 0:00:20]} 40. Bf3 {[%emt 0:00:25]} Rc3 {[%emt 0:00:18]} 41. Kf4 {[%emt 0:00:19]} Rc2 {[%emt 0:01:03]} 42. Bxd5 {[%emt 0:00:27]} cxd5 {[%emt 0:00:03]} 43. Rxd5 {[%emt 0:00:47]} Rxa2 {[%emt 0:00:25]} 44. g3 {[%emt 0:00:30]} Rf2+ {[%emt 0:00:34]} 45. Ke3 {[%emt 0:00:14]} Rb2 {[%emt 0:00:26]} 46. Kf4 {[%emt 0:01:19]} Rxb3 {[%emt 0:00:27]} 47. Rxa5 {[%emt 0:00:00]} Rb4+ {[%emt 0:00:19]} 48. Kf3 {[%emt 0:00:00]} Rb3+ {[%emt 0:00:13]} 49. Kf4 {[%emt 0:00:11]} Rb4+ {[%emt 0:00:07]} 50. Kf3 {[%emt 0:00:46]} Rb3+ {[%emt 0:00:10]} 51. Kf4 {[%emt 0:00:48]} 1/2-1/2

[Event "Chile Championship Women 2022"]
[Site "Las Condes"]
[Date "2022.02.27"]
[Round "11.5"]
[White "Toro Pradenas, Maria Jose"]
[Black "Araos Diaz, Constanza Paz"]
[Result "1-0"]
[ECO "B01"]
[WhiteElo "1979"]
[BlackElo "1435"]
[Annotator "ChessBase"]
[PlyCount "59"]
[EventDate "2022.02.18"]
[EventType "tourn"]
[EventCountry "CHI"]
[SourceTitle "playchess.com"]
[Source "ChessBase"]
[SourceQuality "1"]
[TimeControl "5400+30"]

1. e4 {[%emt 0:11:18]} d5 {[%emt 0:00:15]} 2. exd5 {[%emt 0:00:06]} Qxd5 {[%emt 0:00:05]} 3. Nc3 {[%emt 0:00:05]} Qd6 {[%emt 0:00:01]} 4. d4 {[%emt 0:00:04]} Nf6 {[%emt 0:00:12]} 5. Nf3 {[%emt 0:00:11]} Bg4 {[%emt 0:00:10]} 6. h3 {[%emt 0:00:18]} Bxf3 {[%emt 0:00:06]} 7. Qxf3 {[%emt 0:00:06]} c6 {[%emt 0:00:08]} 8. Be3 {[%emt 0:00:46]} g6 {[%emt 0:00:07]} 9. O-O-O {[%emt 0:02:46]} Nd5 {[%emt 0:00:56]} 10. Ne4 {[%emt 0:02:26]} Qc7 {[%emt 0:01:20]} 11. Bc4 {[%emt 0:07:43]} Bg7 {[%emt 0:01:58]} 12. Ng5 {[%emt 0:07:12]} e6 {[%emt 0:00:39]} 13. h4 {[%emt 0:05:51]} Nf6 {[%emt 0:12:00]} 14. Bxe6 {[%emt 0:04:30]} fxe6 {[%emt 0:10:47]} 15. Nxe6 {[%emt 0:01:09]} Qd7 {[%emt 0:07:18]} 16. Bg5 {[%emt 0:01:46]} Qf7 {[%emt 0:05:38]} 17. Rhe1 {[%emt 0:08:21]} Kd7 {[%emt 0:00:56]} 18. Nxg7 {[%emt 0:00:27]} Qxg7 {[%emt 0:01:16]} 19. Bxf6 {[%emt 0:00:49]} Qh6+ {[%emt 0:00:29]} 20. Bg5 {[%emt 0:00:09]} Qf8 {[%emt 0:00:14]} 21. Re7+ {[%emt 0:00:11]} Kc8 {[%emt 0:00:53]} 22. Qg4+ {[%emt 0:00:12]} Qf5 {[%emt 0:00:12]} 23. Qg3 {[%emt 0:04:39]} Na6 {[%emt 0:00:31]} 24. Rde1 {[%emt 0:01:47]} Qf8 {[%emt 0:03:26]} 25. Qd6 {[%emt 0:06:49]} Qd8 {[%emt 0:01:36]} 26. Qe6+ {[%emt 0:01:00]} Kb8 {[%emt 0:00:20]} 27. Bf4+ {[%emt 0:00:47]} Nc7 {[%emt 0:00:06]} 28. Rxc7 {[%emt 0:00:28]} Qxc7 {[%emt 0:00:09]} 29. Qe8+ {[%emt 0:00:22]} Rxe8 {[%emt 0:00:25]} 30. Rxe8# {[%emt 0:00:37]} 1-0